fUST/lending_fUST_20240730
["ID","MTS","AMOUNT","RATE_DAILY","PERIOD"]
[333681326,1722347460333,-179.301266,0.00013972,2]
[333681327,1722347460342,-347.749427,0.00013972,2]
[333681328,1722347460351,-179.301266,0.00013972,2]
[333681329,1722347460360,-347.749427,0.00013972,2]
[333681330,1722347460369,-179.301266,0.00013972,2]
[333681331,1722347460378,-347.749427,0.00013972,2]
[333681332,1722347460388,-347.749427,0.00013972,2]
[333681333,1722347460397,-347.749427,0.00013972,2]
[333681334,1722347460407,-151.0,0.00013972,2]
[333681335,1722347460417,-347.749427,0.00013972,2]
[333681336,1722347460426,-151.0,0.00013972,2]
[333681337,1722347460435,-347.749427,0.00013972,2]
[333681338,1722347460444,-151.0,0.00013972,2]
[333681339,1722347460453,-347.749427,0.00013972,2]
[333681340,1722347460462,-151.0,0.00013972,2]
[333681341,1722347460472,-347.749427,0.00013972,2]
[333681342,1722347460481,-151.680193,0.00013972,2]
[333681343,1722347460490,-151.0,0.00013972,2]
[333681344,1722347460499,-151.0,0.00013972,2]
[333681345,1722347460508,-151.0,0.00013972,2]
[333681346,1722347460518,-151.0,0.00013972,2]
[333681347,1722347460528,-151.0,0.00013972,2]
[333681348,1722347460537,-151.0,0.00013972,2]
[333681349,1722347460546,-151.0,0.00013972,2]
[333681350,1722347460556,-151.0,0.00013972,2]
[333681351,1722347460565,-266.09218,0.00013972,2]
[333681352,1722347460574,-573.597574,0.00013972,2]
[333681353,1722347460584,-573.597574,0.00013972,2]
[333681354,1722347460593,-151.0,0.00013972,2]
[333681355,1722347460602,-573.597574,0.00013972,2]
[333681356,1722347460611,-151.0,0.00013972,2]
[333681357,1722347460621,-153.172726,0.00013972,2]
[333681358,1722347460630,-573.597574,0.00013972,2]
[333681359,1722347460640,-573.597574,0.00013972,2]
[333681360,1722347460651,-573.597574,0.00013972,2]
[333681361,1722347460661,-573.597574,0.00013972,2]
[333681362,1722347460670,-573.597574,0.00013972,2]
[333681363,1722347460680,-573.597574,0.00013972,2]
[333681364,1722347460690,-573.597574,0.00013972,2]
[333681365,1722347460699,-573.597574,0.00013972,2]
[333681366,1722347460708,-573.597574,0.00013972,2]
[333681367,1722347460718,-243.401683,0.00013972,2]
[333681368,1722347460727,-243.401683,0.00013972,2]
[333681369,1722347460738,-243.401683,0.00013972,2]
[333681370,1722347460750,-573.597574,0.00013972,2]
[333681371,1722347460764,-243.401683,0.00013972,2]
[333681372,1722347460774,-243.401683,0.00013972,2]
[333681373,1722347460784,-573.597574,0.00013972,2]
[333681374,1722347460793,-243.401683,0.00013972,2]
[333681375,1722347460804,-573.597574,0.00013972,2]
[333681376,1722347460813,-243.401683,0.00013972,2]
[333681377,1722347460822,-243.401683,0.00013972,2]
[333681378,1722347460834,-573.597579,0.00013972,2]
[333681379,1722347460844,-238.885598,0.00013972,2]
[333681380,1722347460854,-243.401683,0.00013972,2]
[333681381,1722347460863,-238.885598,0.00013972,2]
[333681382,1722347460872,-243.401683,0.00013972,2]
[333681383,1722347460881,-238.885598,0.00013972,2]
[333681384,1722347460891,-243.401683,0.00013972,2]
[333681385,1722347460902,-238.885598,0.00013972,2]
[333681386,1722347460911,-243.401683,0.00013972,2]
[333681387,1722347460921,-238.885598,0.00013972,2]
[333681388,1722347460935,-238.885598,0.00013972,2]
[333681389,1722347460945,-238.885598,0.00013972,2]
[333681390,1722347460954,-238.885598,0.00013972,2]
[333681391,1722347461041,-151.0,0.00013972,2]
[333681392,1722347461050,-151.0,0.00013972,2]
[333681393,1722347461059,-151.0,0.00013972,2]
[333681394,1722347461069,-243.401683,0.00013972,2]
[333681395,1722347461078,-151.0,0.00013972,2]
[333681396,1722347461087,-238.885598,0.00013972,2]
[333681397,1722347461097,-151.0,0.00013972,2]
[333681398,1722347461106,-238.885598,0.00013972,2]
[333681399,1722347461115,-238.885598,0.00013972,2]
[333681400,1722347461125,-151.0,0.00013972,2]
[333681401,1722347461134,-238.885598,0.00013972,2]
[333681402,1722347461143,-243.401683,0.00013972,2]
[333681403,1722347461154,-238.885598,0.00013972,2]
[333681404,1722347461163,-243.401683,0.00013972,2]
[333681405,1722347461173,-238.885598,0.00013972,2]
[333681406,1722347461183,-243.401679,0.00013972,2]
[333681407,1722347461194,-238.885598,0.00013972,2]
[333681408,1722347461204,-238.8856,0.00013972,2]
[333681409,1722347461215,-248.569592,0.00013972,2]
[333681410,1722347461227,-151.0,0.00013972,2]
[333681411,1722347461237,-151.0,0.00013972,2]
[333681412,1722347461248,-151.0,0.00013972,2]
[333681413,1722347461259,-151.0,0.00013972,2]
[333681414,1722347461268,-151.0,0.00013972,2]
[333681415,1722347461277,-151.0,0.00013972,2]
[333681416,1722347461287,-151.0,0.00013972,2]
[333681417,1722347461297,-151.771041,0.00013972,2]
[333681418,1722347461309,-1075.241036,0.00013972,2]
[333681419,1722347461319,-151.0,0.00013972,2]
[333681420,1722347461330,-151.0,0.00013972,2]
[333681421,1722347461339,-1075.241036,0.00013972,2]
[333681422,1722347461349,-151.0,0.00013972,2]
[333681423,1722347461359,-1075.241036,0.00013972,2]
[333681424,1722347461370,-151.0,0.00013972,2]
[333681425,1722347461379,-1075.241036,0.00013972,2]
[333681426,1722347461388,-1075.241036,0.00013972,2]
[333681427,1722347461398,-1075.241036,0.00013972,2]
[333681428,1722347461409,-1075.241036,0.00013972,2]
[333681429,1722347461420,-664.078915,0.00013972,2]
[333681430,1722347461430,-151.0,0.00013972,2]
[333681431,1722347461439,-151.0,0.00013972,2]
[333681432,1722347461449,-664.078915,0.00013972,2]
[333681433,1722347461458,-1075.241036,0.00013972,2]
[333681434,1722347461468,-151.0,0.00013972,2]
[333681435,1722347461477,-664.078915,0.00013972,2]
[333681436,1722347461487,-664.078915,0.00013972,2]
[333681437,1722347461496,-1075.241036,0.00013972,2]
[333681438,1722347461505,-664.078915,0.00013972,2]
[333681439,1722347461515,-1075.241036,0.00013972,2]
[333681440,1722347461524,-664.078915,0.00013972,2]
[333681441,1722347461534,-1075.241036,0.00013972,2]
[333681442,1722347461543,-664.078915,0.00013972,2]
[333681443,1722347461553,-1075.241036,0.00013972,2]
[333681444,1722347461562,-151.0,0.00013972,2]
[333681445,1722347461572,-664.078915,0.00013972,2]
[333681446,1722347461581,-1075.241036,0.00013972,2]
[333681447,1722347461590,-1075.241036,0.00013972,2]
[333681448,1722347461600,-1075.241036,0.00013972,2]
[333681449,1722347461609,-1075.241028,0.00013972,2]
[333681450,1722347461619,-151.0,0.00013972,2]
[333681451,1722347461628,-664.078915,0.00013972,2]
[333681452,1722347461637,-664.078915,0.00013972,2]
[333681453,1722347461646,-151.0,0.00013972,2]
[333681454,1722347461670,-664.078915,0.00013972,2]
[333681455,1722347461688,-212.136485,0.00013972,2]
[333681456,1722347461710,-664.078915,0.00013972,2]
[333681457,1722347461731,-664.078915,0.00013972,2]
[333681458,1722347461751,-664.078915,0.00013972,2]
[333681459,1722347461774,-664.078915,0.00013972,2]
[333681460,1722347461791,-664.07892202,0.00013972,2]
[333681461,1722347461809,-151.0,0.00013972,2]
[333681462,1722347461829,-184.429354,0.00013972,2]
[333681463,1722347461850,-1438.137213,0.00013972,2]
[333681464,1722347461866,-1438.137213,0.00013972,2]
[333681465,1722347461882,-1438.137213,0.00013972,2]
[333681466,1722347461897,-1438.137213,0.00013972,2]
[333681467,1722347461916,-1438.137213,0.00013972,2]
[333681468,1722347461929,-2706.315834,0.00013972,2]
[333681469,1722347461943,-1438.137213,0.00013972,2]
[333681470,1722347461958,-2706.315834,0.00013972,2]
[333681471,1722347461972,-1438.137213,0.00013972,2]
[333681472,1722347461987,-1448.71534745,0.00013988,2]
[333681473,1722347462003,-208.2257013,0.00014,2]
[333681474,1722347462018,-278.125172,0.00014013,2]
[333681475,1722347462033,-176.841991,0.00014013,2]
[333681476,1722347462048,-207.7556,0.00014013,2]
[333681477,1722347462063,-179.552008,0.00014013,2]
[333681478,1722347462078,-327.149648,0.00014095,2]
[333681479,1722347462091,-369.731984,0.00014095,2]
[333681480,1722347462106,-200.043197,0.00014095,2]
[333681481,1722347462119,-190.14,0.00014125,2]
[333681482,1722347462134,-278.125172,0.00014182,2]
[333681483,1722347462151,-176.841991,0.00014182,2]
[333681484,1722347462165,-207.7556,0.00014182,2]
[333681485,1722347462181,-179.552008,0.00014182,2]
[333681486,1722347462195,-2000.0,0.0001422,2]
[333681487,1722347462210,-2000.0,0.00014228,2]
[333681488,1722347462223,-500.0,0.00014232,2]
[333681489,1722347462237,-500.0,0.00014235,2]
[333681490,1722347462253,-2000.0,0.00014237,2]
[333681491,1722347462268,-2000.0,0.00014237,2]
[333681492,1722347462283,-617.80747668,0.00014245,2]
[333681493,1722347462298,-500.0,0.00014246,2]
[333681494,1722347462314,-500.0,0.00014246,2]
[333681495,1722347462328,-500.0,0.00014246,2]
[333681496,1722347462344,-500.0,0.00014246,2]
[333681497,1722347462358,-500.0,0.00014246,2]
[333681498,1722347462373,-521.85,0.00014246,2]
[333681499,1722347462387,-500.0,0.00014246,2]
[333681500,1722347462402,-500.0,0.00014246,2]
[333681501,1722347462417,-517.30697597,0.00014246,2]
[333681502,1722347462431,-500.0,0.00014246,2]
[333681503,1722347462446,-500.0,0.00014246,2]
[333681504,1722347462461,-500.0,0.00014246,2]
[333681505,1722347462475,-500.0,0.00014246,2]
[333681506,1722347462489,-500.0,0.00014246,2]
[333681507,1722347462503,-500.0,0.00014246,2]
[333681508,1722347462519,-500.0,0.00014246,2]
[333681509,1722347462533,-950.33,0.00014246,2]
[333681510,1722347462547,-500.0,0.00014246,2]
[333681511,1722347462563,-460.23682754,0.00014246,2]
[333681512,1722347462577,-500.0,0.00014246,2]
[333681513,1722347462594,-500.0,0.00014246,2]
[333681514,1722347462609,-500.0,0.00014246,2]
[333681515,1722347462623,-1064.41,0.00014246,2]
[333681516,1722347462638,-500.0,0.00014246,2]
[333681517,1722347462782,-500.0,0.00014246,2]
[333681518,1722347462796,-500.0,0.00014246,2]
[333681519,1722347462806,-1401.73,0.00014246,2]
[333681520,1722347462815,-402.36312419,0.00014246,2]
[333681521,1722347462825,-500.0,0.00014246,2]
[333681522,1722347462835,-511.45,0.00014246,2]
[333681523,1722347462845,-599.59,0.00014246,2]
[333681524,1722347462854,-786.59,0.00014246,2]
[333681525,1722347462864,-1405.12,0.00014246,2]
[333681526,1722347462874,-500.0,0.00014246,2]
[333681527,1722347462884,-500.0,0.00014246,2]
[333681528,1722347462894,-500.0,0.00014246,2]
[333681529,1722347462905,-1182.37,0.00014246,2]
[333681530,1722347462914,-1132.06,0.00014246,2]
[333681531,1722347462924,-717.88,0.00014246,2]
[333681532,1722347462933,-500.0,0.00014246,2]
[333681533,1722347462942,-500.0,0.00014246,2]
[333681534,1722347462953,-500.0,0.00014246,2]
[333681535,1722347462963,-500.0,0.00014246,2]
[333681536,1722347462973,-500.0,0.00014246,2]
[333681537,1722347462985,-500.0,0.00014246,2]
[333681538,1722347462994,-500.0,0.00014246,2]
[333681539,1722347463004,-500.0,0.00014246,2]
[333681540,1722347463014,-1046.37,0.00014246,2]
[333681541,1722347463024,-500.0,0.00014246,2]
[333681542,1722347463035,-500.0,0.00014246,2]
[333681543,1722347463046,-500.0,0.00014246,2]
[333681544,1722347463055,-500.0,0.00014246,2]
[333681545,1722347463065,-1059.36,0.00014246,2]
[333681546,1722347463075,-500.0,0.00014246,2]
[333681547,1722347463084,-1086.91,0.00014246,2]
[333681548,1722347463094,-1067.24,0.00014246,2]
[333681549,1722347463104,-500.0,0.00014246,2]
[333681550,1722347463114,-500.0,0.00014246,2]
[333681551,1722347463124,-500.0,0.00014246,2]
[333681552,1722347463133,-809.95,0.00014246,2]
[333681553,1722347463143,-500.0,0.00014246,2]
[333681554,1722347463154,-1009.09,0.00014246,2]
[333681555,1722347463164,-500.0,0.00014246,2]
[333681556,1722347463173,-500.0,0.00014246,2]
[333681557,1722347463183,-500.0,0.00014246,2]
[333681558,1722347463192,-1220.36,0.00014246,2]
[333681559,1722347463202,-2711.51,0.00014246,2]
[333681560,1722347463212,-500.0,0.00014246,2]
[333681561,1722347463222,-500.0,0.00014246,2]
[333681562,1722347463233,-500.0,0.00014246,2]
[333681563,1722347463243,-510.40950242,0.00014246,2]
[333681564,1722347463253,-500.0,0.00014246,2]
[333681565,1722347463263,-397.72366048,0.00014246,2]
[333681566,1722347463273,-500.0,0.00014246,2]
[333681567,1722347463282,-500.0,0.00014246,2]
[333681568,1722347463292,-500.0,0.00014246,2]
[333681569,1722347463301,-500.0,0.00014246,2]
[333681570,1722347463311,-880.26,0.00014246,2]
[333681571,1722347463320,-500.0,0.00014246,2]
[333681572,1722347463331,-516.22,0.00014246,2]
[333681573,1722347463341,-500.0,0.00014246,2]
[333681574,1722347463351,-500.0,0.00014246,2]
[333681575,1722347463361,-1432.43,0.00014246,2]
[333681576,1722347463371,-432.76881658,0.00014246,2]
[333681577,1722347463382,-500.0,0.00014246,2]
[333681578,1722347463391,-500.0,0.00014246,2]
[333681579,1722347463401,-500.0,0.00014246,2]
[333681580,1722347463411,-500.0,0.00014246,2]
[333681581,1722347463421,-500.0,0.00014246,2]
[333681582,1722347463430,-500.0,0.00014246,2]
[333681583,1722347463440,-242.21138118,0.00014246,2]
[333681584,1722347463449,-1492.59,0.00014246,2]
[333681585,1722347463459,-994.25,0.00014246,2]
[333681586,1722347463469,-500.0,0.00014246,2]
[333681587,1722347463479,-643.09,0.00014246,2]
[333681588,1722347463490,-500.0,0.00014246,2]
[333681589,1722347463500,-500.0,0.00014246,2]
[333681590,1722347463509,-500.0,0.00014246,2]
[333681591,1722347463519,-675.05,0.00014246,2]
[333681592,1722347463528,-500.0,0.00014246,2]
[333681593,1722347463538,-935.53,0.00014246,2]
[333681594,1722347463547,-500.0,0.00014246,2]
[333681595,1722347463557,-500.0,0.00014246,2]
[333681596,1722347463566,-500.0,0.00014246,2]
[333681597,1722347463576,-500.0,0.00014246,2]
[333681598,1722347463586,-888.43,0.00014246,2]
[333681599,1722347463596,-500.0,0.00014246,2]
[333681600,1722347463607,-809.6,0.00014246,2]
[333681601,1722347463616,-6227.88,0.00014246,2]
[333681602,1722347463626,-500.0,0.00014246,2]
[333681603,1722347463635,-1481.52,0.00014246,2]
[333681604,1722347463644,-500.0,0.00014246,2]
[333681605,1722347463657,-500.0,0.00014246,2]
[333681606,1722347463667,-688.86,0.00014246,2]
[333681607,1722347463676,-500.0,0.00014246,2]
[333681608,1722347463686,-1027.58,0.00014246,2]
[333681609,1722347463696,-842.62,0.00014246,2]
[333681610,1722347463706,-500.0,0.00014246,2]
[333681611,1722347463715,-1895.8,0.00014246,2]
[333681612,1722347463726,-500.0,0.00014246,2]
[333681613,1722347463736,-500.0,0.00014246,2]
[333681614,1722347463746,-977.51,0.00014246,2]
[333681615,1722347463757,-605.2,0.00014246,2]
[333681616,1722347463767,-2335.08,0.00014246,2]
[333681617,1722347463776,-1646.98,0.00014246,2]
[333681618,1722347463786,-1592.29,0.00014246,2]
[333681619,1722347463796,-500.0,0.00014246,2]
[333681620,1722347463806,-7324.08,0.00014246,2]
[333681621,1722347463815,-500.0,0.00014246,2]
[333681622,1722347463825,-500.0,0.00014246,2]
[333681623,1722347463836,-500.0,0.00014246,2]
[333681624,1722347463846,-2027.26,0.00014246,2]
[333681625,1722347463856,-500.0,0.00014246,2]
[333681626,1722347463866,-500.0,0.00014246,2]
[333681627,1722347463877,-1072.73,0.00014246,2]
[333681628,1722347463886,-4999.3,0.00014246,2]
[333681629,1722347463896,-1044.86,0.00014246,2]
[333681630,1722347463909,-3712.37,0.00014246,2]
[333681631,1722347463919,-500.0,0.00014246,2]
[333681632,1722347463929,-907.73,0.00014246,2]
[333681633,1722347463939,-1209.23,0.00014246,2]
[333681634,1722347463949,-1257.79,0.00014246,2]
[333681635,1722347463959,-500.0,0.00014246,2]
[333681636,1722347463969,-500.0,0.00014246,2]
[333681637,1722347463978,-500.0,0.00014246,2]
[333681638,1722347463988,-525.99110253,0.00014246,2]
[333681639,1722347463997,-1863.68,0.00014246,2]
[333681640,1722347464007,-2270.31,0.00014246,2]
[333681641,1722347464016,-500.0,0.00014246,2]
[333681642,1722347464026,-500.0,0.00014246,2]
[333681643,1722347464036,-1991.49,0.00014246,2]
[333681644,1722347464045,-500.0,0.00014246,2]
[333681645,1722347464055,-2047.68,0.00014246,2]
[333681646,1722347464065,-500.0,0.00014246,2]
[333681647,1722347464075,-500.0,0.00014246,2]
[333681648,1722347464085,-500.0,0.00014246,2]
[333681649,1722347464095,-500.0,0.00014246,2]
[333681650,1722347464105,-500.0,0.00014246,2]
[333681651,1722347464115,-500.0,0.00014246,2]
[333681652,1722347464124,-1960.72,0.00014246,2]
[333681653,1722347464134,-937.93,0.00014246,2]
[333681654,1722347464143,-2157.48,0.00014246,2]
[333681655,1722347464155,-2465.5,0.00014246,2]
[333681656,1722347464165,-500.0,0.00014246,2]
[333681657,1722347464175,-1673.44,0.00014246,2]
[333681658,1722347464185,-500.0,0.00014246,2]
[333681659,1722347464195,-500.0,0.00014246,2]
[333681660,1722347464205,-500.0,0.00014246,2]
[333681661,1722347464215,-500.0,0.00014246,2]
[333681662,1722347464225,-506.84786693,0.00014246,2]
[333681663,1722347464235,-500.0,0.00014246,2]
[333681664,1722347464244,-500.0,0.00014246,2]
[333681665,1722347464254,-625.78,0.00014246,2]
[333681666,1722347464264,-1069.8,0.00014246,2]
[333681667,1722347464273,-500.0,0.00014246,2]
[333681668,1722347464282,-3270.37,0.00014246,2]
[333681669,1722347464292,-561.14,0.00014246,2]
[333681670,1722347464301,-500.0,0.00014246,2]
[333681671,1722347464311,-500.0,0.00014246,2]
[333681672,1722347464320,-500.0,0.00014246,2]
[333681673,1722347464330,-3034.73,0.00014246,2]
[333681674,1722347464339,-1784.23,0.00014246,2]
[333681675,1722347464349,-874.45,0.00014246,2]
[333681676,1722347464359,-1462.87,0.00014246,2]
[333681677,1722347464368,-547.02,0.00014246,2]
[333681678,1722347464378,-634.81,0.00014246,2]
[333681679,1722347464388,-500.0,0.00014246,2]
[333681680,1722347464397,-856.6,0.00014246,2]
[333681681,1722347464409,-1052.89,0.00014246,2]
[333681682,1722347464419,-1192.19,0.00014246,2]
[333681683,1722347464429,-1839.52,0.00014246,2]
[333681684,1722347464438,-7483.01,0.00014246,2]
[333681685,1722347464448,-716.51,0.00014246,2]
[333681686,1722347464458,-500.0,0.00014246,2]
[333681687,1722347464467,-1303.98,0.00014246,2]
[333681688,1722347464476,-500.0,0.00014246,2]
[333681689,1722347464487,-574.6,0.00014246,2]
[333681690,1722347464497,-500.0,0.00014246,2]
[333681691,1722347464506,-500.0,0.00014246,2]
[333681692,1722347464516,-500.0,0.00014246,2]
[333681693,1722347464525,-500.0,0.00014246,2]
[333681694,1722347464535,-500.0,0.00014246,2]
[333681695,1722347464545,-2053.41,0.00014246,2]
[333681696,1722347464555,-500.0,0.00014246,2]
[333681697,1722347464564,-1450.78,0.00014246,2]
[333681698,1722347464664,-995.03,0.00014246,2]
[333681699,1722347464676,-500.0,0.00014246,2]
[333681700,1722347464686,-500.0,0.00014246,2]
[333681701,1722347464695,-1946.52,0.00014246,2]
[333681702,1722347464705,-500.0,0.00014246,2]
[333681703,1722347464715,-712.14,0.00014246,2]
[333681704,1722347464725,-500.0,0.00014246,2]
[333681705,1722347464735,-500.0,0.00014246,2]
[333681706,1722347464744,-500.0,0.00014246,2]
[333681707,1722347464755,-500.0,0.00014246,2]
[333681708,1722347464765,-500.0,0.00014246,2]
[333681709,1722347464775,-936.48,0.00014246,2]
[333681710,1722347464784,-500.0,0.00014246,2]
[333681711,1722347464794,-1613.63,0.00014246,2]
[333681712,1722347464803,-500.0,0.00014246,2]
[333681713,1722347464813,-503.70080589,0.00014246,2]
[333681714,1722347464822,-500.0,0.00014246,2]
[333681715,1722347464833,-3863.22,0.00014246,2]
[333681716,1722347464842,-500.0,0.00014246,2]
[333681717,1722347464851,-500.0,0.00014246,2]
[333681718,1722347464862,-500.0,0.00014246,2]
[333681719,1722347464872,-711.75,0.00014246,2]
[333681720,1722347464881,-500.0,0.00014246,2]
[333681721,1722347464891,-1734.76,0.00014246,2]
[333681722,1722347464900,-500.0,0.00014246,2]
[333681723,1722347464915,-9265.63,0.00014246,2]
[333681724,1722347464927,-509.76085582,0.00014246,2]
[333681725,1722347464936,-2505.01,0.00014246,2]
[333681726,1722347464945,-1097.8,0.00014246,2]
[333681727,1722347464955,-646.21,0.00014246,2]
[333681728,1722347464964,-500.0,0.00014246,2]
[333681729,1722347464973,-403.4442403,0.00014246,2]
[333681730,1722347464984,-802.35,0.00014246,2]
[333681731,1722347464993,-651.52,0.00014246,2]
[333681732,1722347465003,-500.0,0.00014246,2]
[333681733,1722347465012,-2191.89,0.00014246,2]
[333681734,1722347465023,-640.38,0.00014246,2]
[333681735,1722347465033,-500.0,0.00014246,2]
[333681736,1722347465043,-253.70889074,0.00014246,2]
[333681737,1722347465052,-500.0,0.00014246,2]
[333681738,1722347465062,-500.0,0.00014246,2]
[333681739,1722347465071,-500.0,0.00014246,2]
[333681740,1722347465081,-500.0,0.00014246,2]
[333681741,1722347465091,-500.0,0.00014246,2]
[333681742,1722347465101,-500.0,0.00014246,2]
[333681743,1722347465110,-432.43,0.00014246,2]
[333681744,1722347465120,-254.04,0.00014246,2]
[333681745,1722347465130,-500.0,0.00014246,2]
[333681746,1722347465139,-559.36,0.00014246,2]
[333681747,1722347465149,-586.91,0.00014246,2]
[333681748,1722347465161,-632.06,0.00014246,2]
[333681749,1722347465170,-492.59,0.00014246,2]
[333681750,1722347465179,-500.0,0.00014246,2]
[333681751,1722347465188,-217.36,0.00014246,2]
[333681752,1722347465197,-435.53,0.00014246,2]
[333681753,1722347465207,-500.0,0.00014246,2]
[333681754,1722347465217,-401.73,0.00014246,2]
[333681755,1722347465226,-500.0,0.00014246,2]
[333681756,1722347465236,-228.55315449,0.00014246,2]
[333681757,1722347465245,-500.0,0.00014246,2]
[333681758,1722347465255,-500.0,0.00014246,2]
[333681759,1722347465263,-500.0,0.00014246,2]
[333681760,1722347465274,-500.0,0.00014246,2]
[333681761,1722347465283,-500.0,0.00014246,2]
[333681762,1722347465293,-500.0,0.00014246,2]
[333681763,1722347465302,-477.29053472,0.00014246,2]
[333681764,1722347465311,-500.0,0.00014246,2]
[333681765,1722347465321,-500.0,0.00014246,2]
[333681766,1722347465330,-500.0,0.00014246,2]
[333681767,1722347465341,-500.0,0.00014246,2]
[333681768,1722347465349,-627.17172169,0.00014246,2]
[333681769,1722347465359,-500.0,0.00014246,2]
[333681770,1722347465368,-607.64,0.00014246,2]
[333681771,1722347465378,-500.0,0.00014246,2]
[333681772,1722347465388,-303.98,0.00014246,2]
[333681773,1722347465397,-500.0,0.00014246,2]
[333681774,1722347465408,-500.0,0.00014246,2]
[333681775,1722347465418,-500.0,0.00014246,2]
[333681776,1722347465428,-500.0,0.00014246,2]
[333681777,1722347465438,-477.67427206,0.00014246,2]
[333681778,1722347465447,-500.0,0.00014246,2]
[333681779,1722347465457,-465.53996406,0.00014246,2]
[333681780,1722347465468,-500.0,0.00014246,2]
[333681781,1722347465478,-500.0,0.00014246,2]
[333681782,1722347465488,-500.0,0.00014246,2]
[333681783,1722347465497,-158.26944384,0.00014246,2]
[333681784,1722347465508,-500.0,0.00014246,2]
[333681785,1722347465518,-500.0,0.00014246,2]
[333681786,1722347465528,-833.33,0.00014246,2]
[333681787,1722347465538,-545.90705449,0.00014246,2]
[333681788,1722347465547,-504.82003219,0.00014246,2]
[333681789,1722347465557,-579.53360955,0.00014246,2]
[333681790,1722347465567,-506.92187294,0.00014246,2]
[333681791,1722347465577,-500.0,0.00014246,2]
[333681792,1722347465586,-500.0,0.00014246,2]
[333681793,1722347465596,-500.0,0.00014246,2]
[333681794,1722347465606,-380.03,0.00014246,2]
[333681795,1722347465615,-500.0,0.00014246,2]
[333681796,1722347465625,-355.90835341,0.00014246,2]
[333681797,1722347465634,-500.0,0.00014246,2]
[333681798,1722347465644,-513.97612412,0.00014246,2]
[333681799,1722347465654,-543.81,0.00014246,2]
[333681800,1722347465664,-416.73,0.00014246,2]
[333681801,1722347465673,-518.37452642,0.00014246,2]
[333681802,1722347465682,-509.23619208,0.00014246,2]
[333681803,1722347465691,-500.0,0.00014246,2]
[333681804,1722347465701,-500.0,0.00014246,2]
[333681805,1722347465711,-505.01678531,0.00014246,2]
[333681806,1722347465720,-500.0,0.00014246,2]
[333681807,1722347465730,-500.0,0.00014246,2]
[333681808,1722347465739,-503.71626438,0.00014246,2]
[333681809,1722347465750,-506.30675698,0.00014246,2]
[333681810,1722347465763,-546.53719454,0.00014246,2]
[333681811,1722347465772,-504.47293988,0.00014246,2]
[333681812,1722347465782,-500.0,0.00014246,2]
[333681813,1722347465792,-515.0415024,0.00014246,2]
[333681814,1722347465802,-500.0,0.00014246,2]
[333681815,1722347465812,-482.88099524,0.00014246,2]
[333681816,1722347465821,-515.92031383,0.00014246,2]
[333681817,1722347465831,-551.49520698,0.00014246,2]
[333681818,1722347465842,-625.78,0.00014246,2]
[333681819,1722347465852,-509.37842128,0.00014246,2]
[333681820,1722347465861,-500.0,0.00014246,2]
[333681821,1722347465871,-500.0,0.00014246,2]
[333681822,1722347465881,-330.66504824,0.00014246,2]
[333681823,1722347465890,-509.53627125,0.00014246,2]
[333681824,1722347465900,-508.40938175,0.00014246,2]
[333681825,1722347465911,-565.88595409,0.00014246,2]